bitfinex/quotes_BTCUSD_20260104
["timestamp","ask_amount","ask_price","bid_price","bid_amount"]
[1767522817366,0.0546477,91496.0,91492.0,0.18365705]
[1767522817565,0.06557713,91496.0,91492.0,0.18365705]
[1767522817978,0.01092955,91495.0,91490.0,0.05042917]
[1767522818174,0.05465018,91491.0,91490.0,0.05042917]
[1767522818400,0.01,91492.0,91490.0,0.05042917]
[1767522818608,0.0655793,91493.0,91490.0,0.05042917]
[1767522818983,0.05464981,91492.0,91490.0,0.05042917]
[1767522819165,0.0655793,91493.0,91490.0,0.05042917]
[1767522819367,0.06557852,91494.0,91490.0,0.00049232]
[1767522819603,0.01092979,91493.0,91490.0,0.00049232]
[1767522819752,0.05464962,91492.0,91490.0,0.00049232]
[1767522819956,0.05464995,91492.0,91490.0,0.00049232]
[1767522820118,0.05464995,91492.0,91490.0,0.00044827]
[1767522820346,0.01092967,91494.0,91490.0,0.05465069]
[1767522820568,0.08745849,91495.0,91494.0,0.000448]
[1767522820762,0.08745849,91495.0,91492.0,0.01092991]
[1767522820973,0.08745849,91495.0,91491.0,0.11551656]
[1767522821186,0.03280955,91495.0,91492.0,0.06557926]
[1767522821388,0.03280955,91495.0,91492.0,0.0655352]
[1767522821594,0.021432,91495.0,91494.0,0.05464839]
[1767522822112,0.06557273,91502.0,91498.0,0.065574]
[1767522822868,0.06557273,91502.0,91491.0,0.05464968]
[1767522822869,0.01092884,91501.0,91476.0,0.0001536]
[1767522823087,0.02188,91502.0,91497.0,0.06557534]
[1767522823289,0.13620859,91503.0,91497.0,0.06557534]
[1767522823404,0.10178544,91503.0,91490.0,0.02188]
[1767522823605,0.01092872,91502.0,91497.0,0.01092932]
[1767522823810,0.01092872,91502.0,91494.0,0.01092967]
[1767522824027,0.01092896,91500.0,91495.0,0.05464663]
[1767522824239,0.01086026,91500.0,91496.0,0.01092943]
[1767522824450,0.15642894,91503.0,91498.0,0.0109292]
[1767522824665,0.10178544,91503.0,91499.0,0.01092908]
[1767522824874,0.10178544,91503.0,91500.0,0.0655735]
[1767522825252,0.10178544,91503.0,91498.0,0.0109292]
[1767522825253,0.01092872,91502.0,91498.0,0.0109292]
[1767522825456,0.01092896,91500.0,91496.0,0.01092943]
[1767522825658,0.11271404,91503.0,91497.0,0.01092932]
[1767522825879,0.16735742,91503.0,91497.0,0.06557591]
[1767522826245,0.01092872,91502.0,91498.0,0.0109292]
[1767522826447,0.01092884,91501.0,91496.0,0.01092943]
[1767522826679,0.10178544,91503.0,91500.0,0.01092896]
[1767522827050,0.10178544,91503.0,91501.0,0.05464402]
[1767522828142,0.10178544,91503.0,91502.0,0.05464361]
[1767522829063,0.03280764,91511.0,91506.0,0.06556924]
[1767522829233,0.01092717,91515.0,91506.0,0.06556924]
[1767522829234,0.06556345,91515.0,91508.0,0.010928]
[1767522829634,0.06556381,91514.0,91509.0,0.01092788]
[1767522829846,0.0109274,91513.0,91508.0,0.06556799]
[1767522830077,0.0109274,91513.0,91509.0,0.01092788]
[1767522830248,0.06556381,91514.0,91509.0,0.01092788]
[1767522830744,0.01092728,91514.0,91509.0,0.01092788]
[1767522831312,0.01092728,91514.0,91510.0,0.06556606]
[1767522831510,0.05463613,91515.0,91510.0,0.06556606]
[1767522831847,0.000999,91510.0,91509.0,0.01092788]
[1767522832416,0.000999,91510.0,91509.0,0.06556731]
[1767522832618,0.06556408,91514.0,91509.0,0.06556731]
[1767522833045,0.06556308,91515.0,91510.0,0.06556635]
[1767522833448,0.01092717,91515.0,91511.0,0.01092764]
[1767522833628,0.01092717,91515.0,91510.0,0.06556635]
[1767522833824,0.05799844,91515.0,91510.0,0.06556635]
[1767522835265,0.11263454,91515.0,91510.0,0.06556635]
[1767522835476,0.000999,91510.0,91509.0,0.06556728]
[1767522835839,0.000999,91510.0,91508.0,0.06556751]
[1767522835840,0.04707127,91513.0,91508.0,0.03113479]
[1767522836037,0.04707127,91513.0,91509.0,0.01556716]
[1767522836376,0.01092728,91514.0,91509.0,0.01092788]
[1767522836779,0.01092728,91514.0,91509.0,0.06556723]
[1767522837627,0.06556381,91514.0,91509.0,0.01092788]
[1767522837824,0.06556381,91514.0,91509.0,0.06556724]
[1767522838524,0.01092717,91515.0,91511.0,0.01092764]
[1767522838791,0.06556236,91516.0,91511.0,0.01092764]
[1767522839119,0.06556319,91515.0,91510.0,0.0655662]
[1767522839300,0.06556319,91515.0,91510.0,0.01092776]
[1767522839720,0.06556236,91516.0,91510.0,0.06556607]
[1767522839926,0.01092717,91515.0,91510.0,0.06556607]
[1767522840337,0.06556274,91517.0,91511.0,0.06556542]
[1767522840532,0.01092705,91516.0,91511.0,0.06556542]
[1767522840730,0.0655623,91516.0,91511.0,0.06556542]
[1767522840934,0.06556274,91517.0,91513.0,0.0109274]
[1767522841139,0.02188,91519.0,91514.0,0.01092728]
[1767522841284,0.01092669,91519.0,91514.0,0.01092728]
[1767522841481,0.000999,91514.0,91513.0,0.04668639]
[1767522841688,0.01092776,91510.0,91504.0,0.01092848]
[1767522841890,0.06556636,91511.0,91506.0,0.01092824]
[1767522842155,0.0655692,91507.0,91503.0,0.00065529]
[1767522842531,0.06556964,91506.0,91504.0,0.02188]
[1767522842717,0.06556964,91506.0,91504.0,0.020881]
[1767522842923,0.01092932,91497.0,91490.0,0.01093015]
[1767522843140,0.0109292,91498.0,91491.0,0.02188]
[1767522843322,0.06557383,91500.0,91493.0,0.06557868]
[1767522843525,0.06557383,91500.0,91492.0,0.06557948]
[1767522843526,0.0109292,91498.0,91492.0,0.06557948]
[1767522843745,0.01092932,91497.0,91492.0,0.06557948]
[1767522843965,0.01092932,91497.0,91493.0,0.01092979]
[1767522844160,0.01092932,91497.0,91492.0,0.06557948]
[1767522844331,0.01092932,91497.0,91493.0,0.01092979]
[1767522844530,0.06557522,91498.0,91493.0,0.01092979]
[1767522844912,0.01092932,91497.0,91492.0,0.06557948]
[1767522845762,0.06557522,91498.0,91493.0,0.01092979]
[1767522846294,0.01092932,91497.0,91492.0,0.0655793]
[1767522846453,0.0109292,91498.0,91493.0,0.06557846]
[1767522846783,0.01092932,91497.0,91491.0,0.02188]
[1767522847074,0.06557524,91498.0,91492.0,0.06557947]
[1767522847273,0.0109292,91498.0,91494.0,0.01092967]
[1767522847438,0.01092955,91495.0,91491.0,0.04668639]
[1767522847643,0.01092943,91496.0,91492.0,0.01092991]
[1767522848004,0.01092943,91496.0,91491.0,0.07949642]
[1767522848160,0.01092943,91496.0,91492.0,0.01092991]
[1767522848343,0.01092908,91499.0,91492.0,0.01092991]
[1767522848543,0.01092967,91494.0,91486.0,0.05761702]
[1767522848809,0.01093027,91489.0,91486.0,0.0003613]
[1767522848940,0.06558136,91490.0,91486.0,0.0003613]
[1767522849124,0.01093015,91490.0,91486.0,0.01129193]
[1767522849325,0.01092991,91492.0,91486.0,0.06594499]
[1767522849530,0.06557904,91494.0,91488.0,0.01093039]
[1767522849727,0.01092991,91492.0,91487.0,0.06558302]
[1767522849982,0.21907904,91497.0,91488.0,0.06558234]
[1767522849983,0.0004923,91497.0,91488.0,0.06558234]
[1767522850189,0.05464732,91496.0,91492.0,0.01]
[1767522850395,0.01092955,91495.0,91491.0,0.04668639]
[1767522850546,0.0660687,91497.0,91495.0,0.000999]
[1767522850754,0.0660687,91497.0,91491.0,0.06558009]
[1767522850971,0.01092943,91496.0,91491.0,0.11226648]
[1767522851181,0.06557663,91496.0,91492.0,0.04668639]
[1767522851765,0.01092955,91495.0,91492.0,0.04668639]
[1767522851973,0.06557663,91496.0,91492.0,0.04668639]
[1767522852172,0.06557663,91496.0,91491.0,0.01093003]
[1767522852173,0.01092955,91495.0,91488.0,0.01093039]
[1767522852379,0.01092955,91495.0,91467.0,0.3279863]
[1767522852380,0.01093111,91482.0,91477.0,0.04668639]
[1767522852579,0.01093135,91480.0,91477.0,0.04677327]
[1767522852782,0.05465741,91479.0,91477.0,0.04677327]
[1767522853063,0.06558865,91480.0,91477.0,0.04677327]
[1767522853272,0.05465779,91479.0,91477.0,0.04677327]
[1767522854035,0.05465753,91479.0,91477.0,0.04677327]
[1767522854438,0.06558865,91480.0,91477.0,0.04677327]
[1767522854819,0.01093087,91484.0,91477.0,0.04677327]
[1767522854820,0.04833597,91502.0,91482.0,0.01093111]
[1767522855023,0.43708788,91515.0,91477.0,8.688e-05]
[1767522855024,0.01142162,91497.0,91487.0,0.36195804]
[1767522855224,0.01092955,91495.0,91489.0,0.11226774]
[1767522855445,0.0004923,91497.0,91492.0,0.01092991]
[1767522855605,0.06606847,91497.0,91492.0,0.01092991]
[1767522855817,0.01092955,91495.0,91491.0,0.01093003]
[1767522856013,0.01092955,91495.0,91490.0,0.01093015]
[1767522856214,0.06557735,91495.0,91490.0,0.01093015]
[1767522856414,0.05464586,91499.0,91495.0,0.010999]
[1767522856617,0.01092908,91499.0,91495.0,0.010999]
[1767522857059,0.06557662,91496.0,91490.0,0.06558039]
[1767522857378,0.05464776,91497.0,91491.0,0.06557991]
[1767522857518,0.0109292,91498.0,91492.0,0.06557947]
[1767522857711,0.06557491,91500.0,91495.0,0.01092955]
[1767522857951,0.06557491,91500.0,91495.0,0.06557731]
[1767522858152,0.05464421,91501.0,91500.0,0.000999]
[1767522858373,0.06557288,91502.0,91500.0,0.000999]
[1767522858571,0.06557288,91502.0,91496.0,0.06557647]
[1767522859005,0.06557288,91502.0,91497.0,0.01092932]
[1767522859361,0.05464412,91503.0,91497.0,0.01092932]
[1767522859362,0.06557272,91503.0,91498.0,0.0109292]
[1767522859562,0.0109286,91503.0,91499.0,0.01092908]
[1767522859874,0.01092872,91502.0,91497.0,0.06557539]
[1767522860074,0.01092872,91502.0,91498.0,0.0109292]
[1767522860595,0.01092872,91502.0,91497.0,0.06557573]
[1767522860909,0.01092872,91502.0,91498.0,0.0109292]
[1767522861113,0.06557247,91502.0,91497.0,0.01092932]
[1767522861318,0.01092884,91501.0,91496.0,0.06557652]
[1767522861450,0.01092872,91502.0,91497.0,0.01092932]
[1767522862065,0.01092872,91502.0,91460.0,0.23278744]
[1767522862066,0.00393835,91496.0,91460.0,0.23278744]
[1767522862263,0.04833597,91502.0,91494.0,0.01092967]
[1767522862484,0.01092896,91500.0,91491.0,0.06557971]
[1767522862660,0.01092896,91500.0,91493.0,0.01092979]
[1767522862860,0.0546454,91499.0,91492.0,0.01092991]
[1767522863060,0.05464619,91498.0,91493.0,0.04668639]
[1767522863319,0.0109292,91498.0,91493.0,0.05761618]
[1767522863518,0.0655753,91498.0,91493.0,0.04668639]
[1767522863818,0.01092932,91497.0,91493.0,0.04668639]
[1767522864825,0.01092943,91496.0,91493.0,0.04668639]
[1767522865079,0.01192879,91493.0,91490.0,0.00049232]
[1767522865263,0.06557863,91494.0,91490.0,0.00049232]
[1767522865629,0.01092967,91494.0,91490.0,0.00049232]
[1767522865843,0.06557891,91493.0,91490.0,0.00049232]
[1767522866478,0.01092979,91493.0,91490.0,0.00049232]
[1767522866676,0.06557853,91494.0,91490.0,0.00049232]
[1767522866875,0.01092979,91493.0,91490.0,0.00049232]
[1767522867875,0.01092967,91494.0,91490.0,0.00049232]
[1767522868403,0.01092979,91493.0,91490.0,0.00049232]
[1767522868602,0.06557859,91494.0,91490.0,0.00049232]
[1767522869675,0.01092967,91494.0,91490.0,0.00049232]
[1767522869875,0.01092979,91493.0,91490.0,0.00049232]
[1767522870549,0.06557832,91494.0,91490.0,0.00049232]
[1767522870550,0.01092967,91494.0,91490.0,0.00049232]
[1767522870754,0.06557813,91494.0,91490.0,0.00049232]
[1767522871062,0.01092979,91493.0,91490.0,0.00049232]
[1767522871273,0.01092967,91494.0,91490.0,0.00049232]
[1767522871827,0.06557823,91494.0,91490.0,0.00049232]
[1767522872012,0.01092967,91494.0,91490.0,0.00049232]
[1767522872217,0.06557749,91495.0,91490.0,0.00049232]
[1767522872784,0.06557668,91496.0,91490.0,0.01142247]
[1767522873187,0.01092955,91495.0,91490.0,0.00049232]
[1767522873393,0.05808644,91495.0,91490.0,0.01142247]
[1767522873593,0.05808644,91495.0,91489.0,0.01558131]
[1767522873797,0.11273424,91495.0,91488.0,0.06558191]
[1767522874017,0.01092955,91495.0,91489.0,0.05465093]
[1767522874391,0.06557668,91496.0,91490.0,0.06558091]
[1767522874806,0.06557668,91496.0,91491.0,0.01093003]
[1767522875009,0.08745592,91497.0,91491.0,0.06558021]
[1767522875218,0.03280932,91497.0,91492.0,0.01092991]
[1767522875419,0.03280932,91497.0,91493.0,0.06557833]
[1767522875420,0.02188,91497.0,91493.0,0.06557833]
[1767522875622,0.01581835,91497.0,91493.0,0.06557848]
[1767522876004,0.01581835,91497.0,91494.0,0.01092967]
[1767522876204,0.01581835,91497.0,91494.0,0.01088563]
[1767522877277,0.01581835,91497.0,91494.0,0.01092967]
[1767522879042,0.01581835,91497.0,91494.0,0.01088563]
[1767522879237,0.02188,91498.0,91494.0,0.02185935]
[1767522879456,0.02188,91498.0,91497.0,0.06557592]
[1767522880782,0.04715689,91509.0,91502.0,0.01092872]
[1767522880990,0.02188,91509.0,91503.0,0.06557155]
[1767522881165,0.02188,91509.0,91504.0,0.01092848]
[1767522881472,0.03280788,91509.0,91504.0,0.01092848]
[1767522881688,0.010928,91508.0,91503.0,0.0109286]
[1767522881893,0.02188,91509.0,91505.0,0.01092836]
[1767522882091,0.02188,91509.0,91505.0,0.06552487]
[1767522882268,0.03280788,91509.0,91504.0,0.06557071]
[1767522882624,0.03280788,91509.0,91504.0,0.01092848]
[1767522882967,0.03316913,91509.0,91504.0,0.01092848]
[1767522883171,0.02224125,91509.0,91504.0,0.06557089]
[1767522883536,0.02224125,91509.0,91504.0,0.01092848]
[1767522884039,0.06556803,91508.0,91502.0,0.06557121]
[1767522884515,0.06556803,91508.0,91503.0,0.0109286]
[1767522884666,0.06556876,91507.0,91501.0,0.06557302]
[1767522885065,0.06556876,91507.0,91501.0,0.06457402]
[1767522885476,0.01092812,91507.0,91496.0,0.01092943]
[1767522885673,0.01092812,91507.0,91494.0,0.05464782]
[1767522885674,0.05464439,91501.0,91494.0,0.05464782]
[1767522885897,0.01092896,91500.0,91494.0,0.06557749]
[1767522886132,0.06557424,91500.0,91494.0,0.06557804]
[1767522886292,0.01092908,91499.0,91494.0,0.06557804]
[1767522886617,0.0109292,91498.0,91493.0,0.01092979]
[1767522887027,0.01092908,91499.0,91494.0,0.01092967]
[1767522887666,0.01092908,91499.0,91493.0,0.06557849]
[1767522887868,0.0109292,91498.0,91493.0,0.01092979]
[1767522888068,0.06557455,91499.0,91494.0,0.01092967]
[1767522888316,0.01092932,91497.0,91491.0,0.06558014]
[1767522888541,0.06557544,91498.0,91493.0,0.01092979]
[1767522888744,0.01092908,91499.0,91493.0,0.06557857]
[1767522889108,0.01092884,91501.0,91496.0,0.01092943]
[1767522889294,0.01092848,91504.0,91497.0,0.11803391]
[1767522889494,0.01092872,91502.0,91497.0,0.12896323]
[1767522890428,0.0328086,91503.0,91498.0,0.0109292]
[1767522890594,0.02188,91503.0,91499.0,0.01092908]
[1767522892438,0.02188,91503.0,91501.0,0.05464407]
[1767522892642,0.02188,91503.0,91500.0,0.06552963]
[1767522892802,0.0655668,91510.0,91502.0,0.05464361]
[1767522893010,0.08780861,91509.0,91503.0,0.0119276]
[1767522893228,0.03316913,91509.0,91504.0,0.01092848]
[1767522893427,0.05464203,91505.0,91499.0,0.01092908]
[1767522893629,0.06557066,91505.0,91499.0,0.01092908]
[1767522893950,0.06557066,91505.0,91498.0,0.06557475]
[1767522893951,0.0109286,91503.0,91498.0,0.06557475]
[1767522894125,0.0109286,91503.0,91498.0,0.0109292]
[1767522894507,0.0109286,91503.0,91498.0,0.06557512]
[1767522894714,0.0109286,91503.0,91498.0,0.0109292]
[1767522895866,0.01092848,91504.0,91499.0,0.01092908]
[1767522896422,0.06557094,91504.0,91498.0,0.06557513]
[1767522896630,0.01092848,91504.0,91499.0,0.01092908]
[1767522897266,0.06557066,91505.0,91500.0,0.01092896]
[1767522897775,0.01092824,91506.0,91501.0,0.01092884]
[1767522898327,0.01092836,91505.0,91500.0,0.06557329]
[1767522898565,0.06556965,91506.0,91501.0,0.01092884]
[1767522898745,0.02188,91505.0,91501.0,0.01092884]
[1767522899151,0.02188,91505.0,91502.0,0.01092872]
[1767522899374,0.020881,91505.0,91502.0,0.01092872]
[1767522899696,0.020881,91505.0,91502.0,0.0655722]
[1767522900346,0.020881,91505.0,91503.0,0.0546428]
[1767522900549,0.020881,91505.0,91502.0,0.0655722]
[1767522900749,0.020881,91505.0,91502.0,0.06557232]
[1767522900951,0.020881,91505.0,91502.0,0.01092872]
[1767522901172,0.020881,91505.0,91500.0,0.01092896]
[1767522901374,0.000999,91502.0,91500.0,0.05464461]
[1767522901572,0.03180936,91505.0,91500.0,0.06557357]
[1767522901773,0.01,91500.0,91496.0,0.01092943]
[1767522901950,0.01,91500.0,91495.0,0.05464751]
[1767522902157,0.02092896,91500.0,91495.0,0.01088551]
[1767522902359,0.01,91500.0,91495.0,0.00988651]
[1767522902582,0.01,91500.0,91496.0,0.01092943]
[1767522902981,0.01,91500.0,90809.0,0.025]
[1767522902982,0.02092896,91500.0,91492.0,0.05464905]
[1767522903185,0.05464585,91499.0,91492.0,0.06557896]
[1767522903383,0.06557493,91499.0,91493.0,0.06557857]
[1767522903593,0.06557493,91499.0,91494.0,0.01092967]
[1767522903801,0.0109292,91498.0,91489.0,0.03281027]
[1767522903998,0.06557624,91497.0,91492.0,0.01092991]
[1767522904176,0.01092943,91496.0,91487.0,0.01093051]
[1767522904376,0.01,91487.0,91485.0,0.0655841]
[1767522904722,0.01092932,91497.0,91491.0,0.01093003]
[1767522904861,0.06557764,91495.0,91489.0,0.06558053]
[1767522905065,0.01092955,91495.0,91490.0,0.01093015]
[1767522905269,0.06606825,91497.0,91491.0,0.01093003]
[1767522905477,0.06606825,91497.0,91492.0,0.01092991]
[1767522905714,0.01092943,91496.0,91491.0,0.01093003]
[1767522906639,0.00049231,91497.0,91493.0,0.01092979]
[1767522906838,0.01092979,91493.0,91488.0,0.01093039]
[1767522906975,0.06557858,91494.0,91489.0,0.01093027]
[1767522907175,0.01092979,91493.0,91488.0,0.01093039]
[1767522907381,0.01092967,91494.0,91489.0,0.01093027]
[1767522907602,0.06557736,91495.0,91489.0,0.06558159]
[1767522907812,0.01092967,91494.0,91489.0,0.01093027]
[1767522908020,0.06557736,91495.0,91490.0,0.01093015]
[1767522908657,0.01092955,91495.0,91490.0,0.06558074]
[1767522908853,0.06557741,91495.0,91490.0,0.01093015]
[1767522909600,0.06557741,91495.0,91489.0,0.06558164]
[1767522909802,0.06557929,91493.0,91488.0,0.01093039]
[1767522910618,0.01092967,91494.0,91489.0,0.05864828]
[1767522910994,0.01092955,91495.0,91490.0,0.01093015]
[1767522911160,0.01092967,91494.0,91489.0,0.11329944]
[1767522911492,0.01092967,91494.0,91489.0,0.06558143]
[1767522911863,0.06557749,91495.0,91490.0,0.01093015]
[1767522913664,0.00049231,91497.0,91491.0,0.01093003]
[1767522913865,0.06606832,91497.0,91491.0,0.06557975]
[1767522914643,0.01092943,91496.0,91491.0,0.06557975]
[1767522914943,0.06606832,91497.0,91492.0,0.01092991]
[1767522915347,0.00049231,91497.0,91492.0,0.06557932]
[1767522915653,0.00049231,91497.0,91493.0,0.01092979]
[1767522915796,0.00049231,91497.0,91494.0,0.01092967]
[1767522916193,0.01142163,91497.0,91491.0,0.01093003]
[1767522916393,0.06606869,91497.0,91492.0,0.01092991]
[1767522916854,0.01142163,91497.0,91492.0,0.06557948]
[1767522917070,0.00049231,91497.0,91493.0,0.01092979]
[1767522917846,0.00049231,91497.0,91493.0,0.06557874]
[1767522918047,0.00049231,91497.0,91494.0,0.01092967]
[1767522918860,0.00049231,91497.0,91493.0,0.06557874]
[1767522919401,0.00049231,91497.0,91494.0,0.01092967]
[1767522919779,0.00049231,91497.0,91493.0,0.06557874]
[1767522919980,0.00049231,91497.0,91494.0,0.01092967]
[1767522920180,0.00049231,91497.0,91493.0,0.06557874]
[1767522920381,0.00049231,91497.0,91494.0,0.01092967]
[1767522920586,0.00049231,91497.0,91484.0,0.21861546]
[1767522920787,0.02188,91498.0,91446.0,0.1497]
[1767522920788,0.02188,91498.0,91497.0,0.000492]
[1767522921029,0.08745561,91498.0,91493.0,0.01092979]
[1767522921202,0.02188,91498.0,91494.0,0.01092967]
[1767522922210,0.02188,91498.0,91495.0,0.01092955]
[1767522923600,0.02188,91498.0,91494.0,0.06557784]
[1767522923767,0.02188,91498.0,91495.0,0.01092955]
[1767522924197,0.02188,91498.0,91495.0,0.0655773]
[1767522924393,0.02188,91498.0,91495.0,0.01092955]
[1767522924650,0.02188,91498.0,91495.0,0.06557725]
[1767522924830,0.021373,91498.0,91496.0,0.05464702]
[1767522925026,0.021373,91498.0,91495.0,0.06557725]
[1767522926216,0.021373,91498.0,91496.0,0.05464709]
[1767522927198,0.02188,91497.0,91496.0,0.06557652]
[1767522927395,0.01092884,91501.0,91496.0,0.06557652]
[1767522927600,0.02188,91497.0,91496.0,0.06557652]
[1767522927797,0.02188,91497.0,91496.0,0.01092943]
[1767522928308,0.02188,91497.0,91492.0,0.01092991]
[1767522928529,0.000999,91496.0,91492.0,0.01092991]
[1767522928706,0.02188,91497.0,91494.0,0.01092967]
[1767522928908,0.02188,91497.0,91494.0,0.06557796]
[1767522929455,0.02188,91497.0,91495.0,0.05464773]
[1767522929821,0.02188,91497.0,91495.0,0.05464768]
[1767522930709,0.05564683,91495.0,91486.0,0.01093063]
[1767522930909,0.01093003,91491.0,91486.0,0.01093063]
[1767522931310,0.01092991,91492.0,91487.0,0.01093051]
[1767522931939,0.05887997,91492.0,91487.0,0.01093051]
[1767522932747,0.01093003,91491.0,91485.0,0.06558429]
[1767522932949,0.000999,91487.0,91485.0,0.01093075]
[1767522933112,0.06658326,91487.0,91481.0,0.01093123]
[1767522933329,0.06558426,91487.0,91481.0,0.01093123]
[1767522933759,0.01093051,91487.0,91480.0,0.06558785]
[1767522933963,0.06558381,91486.0,91480.0,0.06558807]
[1767522934259,0.01093087,91484.0,91477.0,0.04657114]
[1767522934482,0.000999,91480.0,91477.0,0.05465854]
[1767522934698,0.01093075,91485.0,91476.0,0.04672474]
[1767522934699,0.01093075,91485.0,91480.0,0.01193034]
[1767522934907,0.01093075,91485.0,91480.0,0.00099899]
[1767522935125,0.01093051,91487.0,91481.0,0.01093123]
[1767522935278,0.01093063,91486.0,91481.0,0.01093123]
[1767522935695,0.0659449,91486.0,91481.0,0.01093123]
[1767522935899,0.01129165,91486.0,91481.0,0.06558736]
[1767522936193,0.00036102,91486.0,91482.0,0.01093111]
[1767522936396,0.00036102,91486.0,91471.0,0.21864699]
[1767522936599,0.000999,91482.0,91480.0,0.01093135]
[1767522936782,0.01093075,91485.0,91480.0,0.01093135]
[1767522936977,0.01093075,91485.0,91479.0,0.05465677]
[1767522936978,0.06558455,91485.0,91479.0,0.06558824]
[1767522937178,0.06558455,91485.0,91480.0,0.01093135]
[1767522937581,0.01093099,91483.0,91478.0,0.06558836]
[1767522937783,0.02188,91482.0,91478.0,0.01093159]
[1767522937960,0.02188,91482.0,91479.0,0.01093147]
[1767522938165,0.02188,91482.0,91477.0,0.0109317]
[1767522938467,0.03281111,91482.0,91477.0,0.06559023]
[1767522938888,0.02188,91482.0,91478.0,0.01093159]
[1767522939078,0.02188,91482.0,91479.0,0.01093147]
[1767522939503,0.03281111,91482.0,91478.0,0.04657114]
[1767522939787,0.06658831,91479.0,91476.0,0.0001536]
[1767522939982,0.01093147,91479.0,91476.0,0.0001536]
[1767522940185,0.06558853,91481.0,91476.0,0.0001536]
[1767522940341,0.06558853,91481.0,91476.0,0.01108542]
[1767522940537,0.01093123,91481.0,91476.0,0.01108542]
[1767522941340,0.01093123,91481.0,91477.0,0.0109317]
[1767522941567,0.01093123,91481.0,91476.0,0.0001536]
[1767522941897,0.01093123,91481.0,91476.0,0.01108542]
[1767522943545,0.01093123,91481.0,91477.0,0.0109317]
[1767522943876,0.01093123,91481.0,91476.0,0.06574448]
[1767522944282,0.01093123,91481.0,91476.0,0.0001536]
[1767522944283,0.01093147,91479.0,91476.0,0.0001536]
[1767522944578,0.06558933,91479.0,91476.0,0.0001536]
[1767522945346,0.06558933,91479.0,91476.0,6e-07]
[1767522945552,0.06558812,91480.0,91476.0,6e-07]
[1767522945756,0.06558812,91480.0,91470.0,0.0264254]
[1767522945757,0.06558895,91479.0,91470.0,0.0264254]
[1767522946057,0.06558895,91479.0,91473.0,0.065593]
[1767522946312,0.01093159,91478.0,91473.0,0.065593]
[1767522946602,0.01093159,91478.0,91473.0,0.06559297]
[1767522946750,0.05465975,91475.0,91468.0,0.01093278]
[1767522946952,0.01093206,91474.0,91468.0,0.01093278]
[1767522947371,0.06559254,91474.0,91468.0,0.01093278]
[1767522947577,0.06559992,91464.0,91457.0,0.0110877]
[1767522947789,0.01093314,91465.0,91458.0,0.0656038]
[1767522948052,0.06559975,91464.0,91458.0,0.0656038]
[1767522948290,0.01093326,91464.0,91458.0,0.0656038]
[1767522948606,0.01093338,91463.0,91458.0,0.01093398]
[1767522948964,0.06560054,91463.0,91457.0,0.06575814]
[1767522949170,0.06560054,91463.0,91458.0,0.01093398]
[1767522949905,0.01093326,91464.0,91458.0,0.06560388]
[1767522950457,0.01093338,91463.0,91458.0,0.01093398]
[1767522950672,0.01093338,91463.0,91457.0,0.0110877]
[1767522950673,0.0109335,91462.0,91457.0,0.0110877]
[1767522951070,0.01093326,91464.0,91462.0,0.000153]
[1767522951271,0.01093326,91464.0,91457.0,0.0001536]
[1767522951457,0.01093374,91460.0,91457.0,0.0001536]
[1767522951659,0.06560363,91460.0,91457.0,0.0001536]
[1767522951877,0.01093374,91460.0,91457.0,0.0001536]
[1767522952723,0.06560104,91462.0,91460.0,0.000153]
[1767522952881,0.06560104,91462.0,91457.0,0.0110877]
[1767522953089,0.01093362,91461.0,91457.0,0.0001536]
[1767522953804,0.06560104,91462.0,91461.0,0.000153]
[1767522954150,0.01093374,91460.0,91457.0,0.0001536]
[1767522954288,0.06560555,91456.0,91450.0,0.5]
[1767522954913,0.01093433,91455.0,91450.0,0.5]
[1767522955079,0.01093445,91454.0,91450.0,0.5]
[1767522955525,0.01093445,91454.0,91451.0,0.11816483]
[1767522955827,0.01093445,91454.0,91451.0,8.688e-05]
[1767522956208,0.05467348,91452.0,91451.0,8.688e-05]
[1767522956394,0.05467348,91452.0,91451.0,8.8e-07]
[1767522956581,0.05467408,91451.0,91450.0,1e-08]
[1767522956931,0.05467408,91451.0,91450.0,8.696e-05]
[1767522957128,0.05467408,91451.0,91450.0,9.6e-07]
[1767522960157,0.09970445,91451.0,91450.0,9.6e-07]
[1767522960307,0.09937945,91451.0,91450.0,9.6e-07]
[1767522960708,0.03628248,91451.0,91450.0,9.6e-07]
[1767522961245,0.08210011,91453.0,91450.0,9.6e-07]
[1767522961431,0.04928554,91452.0,91450.0,9.6e-07]
[1767522963183,0.03281457,91453.0,91450.0,9.6e-07]
[1767522963390,0.08748772,91453.0,91450.0,9.6e-07]
[1767522964340,0.05467349,91452.0,91450.0,9.6e-07]
[1767522964777,0.03281457,91453.0,91450.0,9.6e-07]
[1767522965749,0.02188,91452.0,91450.0,0.01093589]
[1767522965892,0.02188,91457.0,91456.0,0.05467109]
[1767522966339,0.02179193,91457.0,91455.0,0.01093433]
[1767522966638,0.02179193,91457.0,91456.0,0.05467109]
[1767522966839,0.02188,91461.0,91458.0,0.01093398]
[1767522967045,0.02188,91461.0,91459.0,0.06560262]
[1767522967638,0.02188,91461.0,91459.0,0.01093386]
[1767522967874,0.02188,91461.0,91459.0,0.06560303]
[1767522968022,0.06559756,91467.0,91461.0,0.05850646]
[1767522968220,0.02188,91464.0,91462.0,0.06560046]
[1767522969227,0.02188,91464.0,91463.0,0.05466691]
[1767522969467,0.00057236,91464.0,91463.0,0.05466691]
[1767522970047,0.00057236,91464.0,91462.0,0.06560046]
[1767522971314,0.00057236,91464.0,91463.0,0.05466691]
[1767522971488,0.06559599,91469.0,91464.0,0.01093326]
[1767522971659,0.06559599,91469.0,91463.0,0.06560029]
[1767522971864,0.01093266,91469.0,91463.0,0.06560029]
[1767522972271,0.03294776,91488.0,91468.0,0.05850562]
[1767522972585,0.03294776,91488.0,91460.0,0.13995795]
[1767522972586,0.06558577,91484.0,91477.0,0.0109317]
[1767522972785,0.01093099,91483.0,91478.0,0.01093159]
[1767522972992,0.01093111,91482.0,91477.0,0.0109317]
[1767522973153,0.000999,91477.0,91475.0,0.05465919]
[1767522973348,0.000999,91477.0,91475.0,0.06559113]
[1767522973553,0.000999,91477.0,91476.0,0.05465914]
[1767522973778,0.06558703,91483.0,91477.0,0.0109317]
[1767522973988,0.05465562,91482.0,91476.0,0.0655904]
[1767522974863,0.01093123,91481.0,91476.0,0.01093182]
[1767522975068,0.06558741,91481.0,91476.0,0.01093182]
[1767522975665,0.01093123,91481.0,91476.0,0.06559052]
[1767522975867,0.06558673,91482.0,91477.0,0.0109317]
[1767522976792,0.06569433,91483.0,91478.0,0.01093159]
[1767522977199,0.01093111,91482.0,91477.0,0.06559012]
[1767522977394,0.01093123,91481.0,91476.0,0.06559052]
[1767522977604,0.01093123,91481.0,91477.0,0.0109317]
[1767522977780,0.01093123,91481.0,91476.0,0.06559052]
[1767522977982,0.06558691,91482.0,91477.0,0.0109317]
[1767522978200,0.01093123,91481.0,91476.0,0.06559052]
[1767522979895,0.010999,91476.0,91475.0,0.05465974]
[1767522980098,0.01091092,91476.0,91475.0,0.05465974]
[1767522980298,0.01,91476.0,91474.0,0.06559182]